bitfinex-derivatives/quotes_BTCF0:USTF0_20250602
["timestamp","ask_amount","ask_price","bid_price","bid_amount"]
[1748903113063,1.98555929,105640.0,105630.0,1.07990037]
[1748903113557,1.98575929,105640.0,105630.0,1.07988545]
[1748903113967,1.8074763,105640.0,105630.0,1.07988545]
[1748903114264,1.6182296,105640.0,105630.0,1.26913695]
[1748903114455,1.98574619,105640.0,105630.0,1.1507097]
[1748903115553,1.98574619,105640.0,105630.0,1.10878428]
[1748903116460,1.8074632,105640.0,105630.0,1.10878428]
[1748903116661,1.8074632,105640.0,105630.0,1.29803578]
[1748903116662,1.98574619,105640.0,105630.0,1.29803578]
[1748903116857,1.98574619,105640.0,105630.0,1.09702463]
[1748903117057,1.98574619,105640.0,105630.0,1.03791973]
[1748903117757,1.98574619,105640.0,105630.0,1.08130408]
[1748903118147,1.98574619,105640.0,105630.0,1.03791973]
[1748903118351,1.98574619,105640.0,105630.0,1.27055568]
[1748903118550,1.98574619,105640.0,105630.0,1.22717133]
[1748903118750,1.98574619,105640.0,105630.0,1.03791973]
[1748903119255,1.98574619,105640.0,105630.0,0.91111973]
[1748903119462,1.98574619,105640.0,105630.0,0.98194398]
[1748903120557,1.98574619,105640.0,105630.0,1.02501668]
[1748903120865,1.98574619,105640.0,105630.0,0.98249733]
[1748903121064,1.98574619,105640.0,105630.0,1.11749733]
[1748903121558,1.98554619,105640.0,105630.0,1.11749733]
[1748903121961,1.98574619,105640.0,105630.0,1.11749733]
[1748903122164,1.98574619,105640.0,105630.0,1.04667308]
[1748903123161,0.4174591,105620.0,105610.0,0.06909718]
[1748903123355,0.4174591,105620.0,105610.0,1.35619721]
[1748903123356,0.95654209,105620.0,105610.0,1.35619721]
[1748903123661,1.00674209,105620.0,105610.0,0.71351721]
[1748903123962,1.00674209,105620.0,105610.0,1.35603721]
[1748903124358,1.00674209,105620.0,105610.0,1.30871611]
[1748903124562,0.81747259,105620.0,105610.0,1.30871611]
[1748903124755,0.2783896,105620.0,105610.0,1.30871611]
[1748903125155,0.2783896,105620.0,105610.0,0.66619611]
[1748903125355,0.2783896,105620.0,105610.0,1.30799611]
[1748903125861,0.2783896,105620.0,105610.0,1.30759611]
[1748903126257,0.2783896,105620.0,105610.0,1.37990666]
[1748903126461,0.5004591,105620.0,105610.0,1.41010666]
[1748903126963,0.5004591,105620.0,105610.0,1.36262646]
[1748903127170,0.63083567,105620.0,105610.0,1.36262646]
[1748903127754,0.63083567,105620.0,105610.0,1.40357287]
[1748903128660,0.5004591,105620.0,105610.0,0.68316626]
[1748903128875,0.99163567,105620.0,105610.0,0.60077696]
[1748903129168,0.99163567,105620.0,105610.0,0.39011055]
[1748903129357,0.99163567,105620.0,105610.0,1.03007055]
[1748903130462,0.99163567,105620.0,105610.0,0.57063842]
[1748903130761,0.99163567,105620.0,105610.0,0.35931055]
[1748903130973,1.08631967,105620.0,105610.0,0.35]
[1748903131154,0.1892874,105610.0,105600.0,0.13942234]
[1748903131479,0.1893053,105600.0,105590.0,0.13928]
[1748903131762,0.9092587,105600.0,105590.0,0.99075347]
[1748903132165,0.9092587,105600.0,105590.0,1.00028394]
[1748903132655,0.9092587,105600.0,105590.0,1.08149132]
[1748903132852,0.9092587,105600.0,105590.0,1.11439132]
[1748903133472,0.73087256,105600.0,105590.0,1.14769132]
[1748903133664,0.73087256,105600.0,105590.0,1.14869132]
[1748903133868,0.18076726,105600.0,105590.0,0.66523452]
[1748903134077,0.11916726,105600.0,105590.0,1.33519452]
[1748903134380,0.11916726,105600.0,105590.0,1.33555452]
[1748903134674,0.11896726,105600.0,105590.0,0.87502066]
[1748903134862,0.08896726,105600.0,105590.0,1.54716066]
[1748903135172,0.08876726,105600.0,105590.0,1.94923047]
[1748903135465,0.08896726,105600.0,105590.0,2.06544382]
[1748903135959,0.08876726,105600.0,105590.0,2.06544382]
[1748903136461,0.08876726,105600.0,105590.0,2.14810645]
[1748903136462,0.08896726,105600.0,105590.0,2.14810645]
[1748903136662,0.08896726,105600.0,105590.0,1.96972031]
[1748903136862,0.0002,105600.0,105590.0,2.14810645]
[1748903137671,0.0002,105600.0,105590.0,1.96972031]
[1748903137860,0.0002,105600.0,105590.0,2.14810645]
[1748903138061,0.0002,105600.0,105590.0,2.06544382]
[1748903138367,0.0002,105600.0,105590.0,2.14810645]
[1748903138567,0.00014234,105610.0,105600.0,0.1893053]
[1748903138772,0.0889096,105610.0,105600.0,0.9735159]
[1748903138976,0.0889096,105610.0,105600.0,1.0037159]
[1748903139563,0.0891096,105610.0,105600.0,1.0037159]
[1748903142568,0.0891096,105610.0,105600.0,1.00453931]
[1748903143171,0.0891096,105610.0,105600.0,1.09155484]
[1748903144869,0.08876726,105630.0,105620.0,0.0473157]
[1748903145067,0.08876726,105630.0,105620.0,1.26789367]
[1748903145265,0.12146726,105630.0,105620.0,1.30019367]
[1748903145471,0.12166726,105630.0,105620.0,1.38717939]
[1748903145670,0.48246726,105630.0,105620.0,1.38717939]
[1748903145859,0.12166726,105630.0,105620.0,1.38717939]
[1748903146060,0.48246726,105630.0,105620.0,1.38717939]
[1748903146271,0.48246726,105630.0,105620.0,1.34490975]
[1748903146478,0.12166726,105630.0,105620.0,1.34490975]
[1748903146666,0.12166726,105630.0,105620.0,1.37660975]
[1748903146866,0.12166726,105630.0,105620.0,1.41886208]
[1748903147969,0.31091876,105630.0,105620.0,1.22960618]
[1748903148168,0.31091876,105630.0,105620.0,1.22300618]
[1748903148378,0.12166726,105630.0,105620.0,1.37102745]
[1748903149672,0.31091876,105630.0,105620.0,1.37102745]
[1748903149869,0.67171876,105630.0,105620.0,1.37014745]
[1748903150073,0.6759683,105630.0,105620.0,1.32789512]
[1748903150276,0.6759683,105630.0,105620.0,1.37012873]
[1748903150572,0.0932168,105630.0,105620.0,2.26203487]
[1748903150776,0.0321,105660.0,105650.0,0.1892156]
[1748903150978,0.62789091,105660.0,105650.0,1.02108316]
[1748903151176,0.62789091,105660.0,105650.0,1.08438316]
[1748903151368,0.43889321,105660.0,105650.0,1.27359886]
[1748903151570,0.07789321,105660.0,105650.0,1.49981361]
[1748903151776,0.26729101,105660.0,105650.0,1.58258248]
[1748903152079,0.26729101,105660.0,105650.0,1.40419634]
[1748903152281,0.26729101,105660.0,105650.0,1.17080513]
[1748903152282,0.62809101,105660.0,105650.0,1.17080513]
[1748903152482,0.62809101,105660.0,105650.0,1.36002083]
[1748903152483,0.26729101,105660.0,105650.0,1.36002083]
[1748903152779,0.26729101,105660.0,105650.0,1.53840697]
[1748903152979,0.26729101,105660.0,105650.0,0.54372513]
[1748903153176,0.26729101,105660.0,105650.0,1.19504119]
[1748903153177,0.62789101,105660.0,105650.0,1.19504119]
[1748903153377,0.65889101,105660.0,105650.0,1.19504119]
[1748903153677,0.65889101,105660.0,105650.0,1.06598561]
[1748903153882,0.65889101,105660.0,105650.0,0.51372014]
[1748903154083,0.65889101,105660.0,105650.0,1.14036014]
[1748903154383,0.07809321,105660.0,105650.0,1.89605149]
[1748903154585,0.07789321,105660.0,105650.0,1.89605149]
[1748903154893,0.07789321,105660.0,105650.0,1.99971635]
[1748903154894,0.07809321,105660.0,105650.0,1.99971635]
[1748903155369,0.002,105690.0,105680.0,0.189162]
[1748903155570,0.005,105700.0,105690.0,0.44972576]
[1748903155774,0.07789321,105700.0,105690.0,0.98353619]
[1748903155978,0.0348,105720.0,105690.0,1.34070945]
[1748903156180,0.2238903,105720.0,105710.0,0.20095732]
[1748903156382,0.2238903,105720.0,105710.0,1.09123828]
[1748903156383,0.07896761,105720.0,105710.0,1.09123828]
[1748903156581,0.0022,105720.0,105710.0,0.90729083]
[1748903156781,0.0022,105720.0,105710.0,0.777]
[1748903157084,0.40619561,105730.0,105710.0,0.94944536]
[1748903157282,0.40619561,105730.0,105720.0,0.62744]
[1748903157283,0.35892341,105730.0,105720.0,0.62744]
[1748903157579,0.35892341,105730.0,105720.0,1.02571479]
[1748903157779,0.35892341,105730.0,105720.0,0.39827479]
[1748903157780,0.71972341,105730.0,105720.0,0.39827479]
[1748903158080,0.71972341,105730.0,105720.0,1.02543479]
[1748903158282,0.35892341,105730.0,105720.0,0.98336]
[1748903158488,0.31164051,105730.0,105720.0,1.36759213]
[1748903158682,0.31164051,105730.0,105720.0,1.17850143]
[1748903158877,0.28764051,105730.0,105720.0,1.36759473]
[1748903159187,0.31874051,105730.0,105720.0,1.22233017]
[1748903159381,0.63226249,105730.0,105720.0,1.40019473]
[1748903159585,0.63226249,105730.0,105720.0,0.40607687]
[1748903159779,0.81012705,105730.0,105720.0,1.00087687]
[1748903159979,0.63226249,105730.0,105720.0,1.00115687]
[1748903160683,0.72684649,105730.0,105720.0,0.95515687]
[1748903160883,0.36604649,105730.0,105720.0,0.99845687]
[1748903161081,0.05128959,105730.0,105720.0,1.36541443]
[1748903161281,0.05148959,105730.0,105720.0,1.90300616]
[1748903161680,0.4078,105740.0,105730.0,0.1890751]
[1748903161880,0.45908959,105740.0,105730.0,0.74023966]
[1748903162786,0.43528959,105740.0,105730.0,0.74023966]
[1748903163390,0.43528959,105740.0,105730.0,0.81623245]
[1748903163794,0.43528959,105740.0,105730.0,0.63836789]
[1748903163988,0.43528959,105740.0,105730.0,0.63836799]
[1748903163989,0.62434689,105740.0,105730.0,0.63836799]
[1748903164190,0.67044689,105740.0,105730.0,0.49229279]
[1748903164394,0.67044689,105740.0,105730.0,0.68136799]
[1748903164586,0.67044689,105740.0,105730.0,0.49229279]
[1748903164784,0.33264689,105740.0,105730.0,0.68136789]
[1748903164984,0.0462,105740.0,105730.0,1.22003245]
[1748903165294,0.09748959,105740.0,105730.0,1.22003245]
[1748903165499,0.09728959,105740.0,105730.0,1.21982263]
[1748903165796,0.09748959,105740.0,105730.0,1.21982263]
[1748903165997,0.28654689,105740.0,105730.0,1.04195807]
[1748903166194,0.64734689,105740.0,105730.0,0.68115807]
[1748903166788,0.64734689,105740.0,105730.0,1.31143807]
[1748903166998,0.64734689,105740.0,105730.0,0.49208297]
[1748903167185,0.0002,105740.0,105730.0,1.85006273]
[1748903167390,0.0002,105740.0,105730.0,1.94463879]
[1748903167583,0.002,105750.0,105740.0,0.1890573]
[1748903167789,0.002,105750.0,105740.0,1.10362186]
[1748903168193,0.002,105750.0,105740.0,1.19818897]
[1748903168495,0.002,105750.0,105740.0,1.2405632]
[1748903168687,0.0022,105750.0,105740.0,1.2405632]
[1748903169189,0.0022,105750.0,105740.0,1.14599609]
[1748903169493,0.05128959,105760.0,105750.0,0.094518]
[1748903169686,0.05128959,105760.0,105750.0,1.13496206]
[1748903169998,0.20871355,105760.0,105750.0,0.72690386]
[1748903170183,0.34644536,105760.0,105750.0,0.53786456]
[1748903170496,0.39773495,105760.0,105750.0,0.99288]
[1748903170697,0.39773495,105760.0,105750.0,0.5490395]
[1748903170901,0.75853495,105760.0,105750.0,0.49392]
[1748903171093,0.1890395,105750.0,105740.0,0.0459]
[1748903171395,0.60112909,105750.0,105740.0,0.9786974]
[1748903171598,0.75835305,105750.0,105740.0,0.29]
[1748903171798,0.98271761,105750.0,105740.0,0.29]
[1748903172094,1.07728561,105750.0,105740.0,0.29]
[1748903172304,1.07728561,105750.0,105740.0,0.79032]
[1748903172487,0.98271761,105750.0,105740.0,0.79032]
[1748903172694,0.98271761,105750.0,105740.0,0.83742]
[1748903172695,0.80485305,105750.0,105740.0,0.83742]
[1748903173195,0.80485305,105750.0,105740.0,1.77926316]
[1748903173196,0.15722396,105750.0,105740.0,1.77926316]
[1748903173403,0.15742396,105750.0,105740.0,1.82316316]
[1748903173604,0.15742396,105750.0,105740.0,1.68767588]
[1748903173605,0.15722396,105750.0,105740.0,1.68767588]
[1748903173894,0.57541861,105750.0,105740.0,0.86417728]
[1748903174096,0.57541861,105750.0,105740.0,1.09564]
[1748903174398,0.38657811,105750.0,105740.0,1.32707337]
[1748903174598,0.20871355,105750.0,105740.0,1.13801497]
[1748903175201,0.61931861,105750.0,105740.0,0.45947497]
[1748903175391,1.02321861,105750.0,105740.0,0.91007497]
[1748903175592,1.02321861,105750.0,105740.0,0.40947497]
[1748903175791,0.1890584,105740.0,105730.0,0.0782159]
[1748903176097,0.1890584,105740.0,105730.0,0.6390159]
[1748903176098,1.35643651,105740.0,105730.0,0.6390159]
[1748903176403,1.13101252,105740.0,105730.0,0.3982159]
[1748903176706,1.13101252,105740.0,105730.0,0.8897359]
[1748903178809,1.13101252,105740.0,105730.0,0.3882159]
[1748903179001,1.13066453,105740.0,105730.0,0.2]
[1748903179195,1.13066453,105740.0,105700.0,0.60193314]
[1748903179196,0.1891121,105710.0,105700.0,0.19275304]
[1748903179505,0.7518242,105710.0,105700.0,0.07619241]
[1748903179689,1.10175216,105710.0,105700.0,0.37170616]
[1748903179889,1.10175216,105710.0,105700.0,0.71072]
[1748903180093,1.10175216,105710.0,105700.0,0.71076]
[1748903180502,1.34677037,105710.0,105700.0,0.70569821]
[1748903180696,0.18913,105700.0,105690.0,0.07509734]
[1748903180898,0.77119456,105700.0,105690.0,0.68076]
[1748903181095,1.02303052,105700.0,105690.0,0.68076]
[1748903181295,0.1891479,105690.0,105680.0,0.0462]
[1748903181509,0.81611246,105690.0,105680.0,1.1162458]
[1748903181704,0.97333642,105690.0,105680.0,1.1162458]
[1748903181906,0.9734477,105690.0,105680.0,1.1162458]
[1748903182106,0.20223524,105690.0,105680.0,1.13330759]
[1748903182300,0.15733524,105690.0,105680.0,1.6088997]
[1748903182604,0.15733524,105690.0,105680.0,1.55110994]
[1748903182803,0.15733524,105690.0,105680.0,1.7289745]
[1748903183003,0.15753524,105690.0,105680.0,1.71497215]
[1748903183203,0.15753524,105690.0,105680.0,1.53710759]
[1748903183508,0.15753524,105690.0,105680.0,1.6237906]
[1748903183707,0.15753524,105690.0,105680.0,1.63779254]
[1748903184018,0.15753524,105690.0,105680.0,1.21382032]
[1748903184206,0.15753524,105690.0,105680.0,1.83889838]
[1748903184508,0.15753524,105690.0,105680.0,2.13279201]
[1748903185006,0.15753524,105690.0,105680.0,2.06014996]
[1748903185196,0.15753524,105690.0,105680.0,2.046109]
[1748903185397,0.15753524,105690.0,105680.0,2.06014995]
[1748903185607,0.15753524,105690.0,105680.0,1.94412088]
[1748903186104,0.00014234,105700.0,105690.0,0.1891478]
[1748903186305,0.00014234,105700.0,105690.0,2.61158213]
[1748903186497,0.00034234,105700.0,105690.0,2.52832957]
[1748903186698,0.00014234,105700.0,105690.0,3.09628293]
[1748903186902,0.00014234,105700.0,105690.0,3.00166213]
[1748903187109,0.00014234,105700.0,105690.0,2.82379757]
[1748903187401,0.00034234,105700.0,105690.0,2.85619236]
[1748903187597,0.00034234,105700.0,105690.0,3.00166213]
[1748903188002,0.00034234,105700.0,105690.0,3.00206213]
[1748903188798,0.00034234,105700.0,105690.0,3.04686213]
[1748903189409,0.00034234,105700.0,105690.0,2.90139236]
[1748903189801,0.00034234,105700.0,105690.0,2.7235278]
[1748903190002,0.00034234,105700.0,105690.0,2.90139236]
[1748903190503,0.1782069,105700.0,105690.0,0.4205]
[1748903190702,0.1782069,105700.0,105690.0,0.7249601]
[1748903190703,0.5390069,105700.0,105690.0,0.7249601]
[1748903190907,0.00034234,105700.0,105690.0,1.22887363]
[1748903191110,0.00034234,105700.0,105690.0,1.82995948]
[1748903191299,0.00034234,105700.0,105690.0,1.70345375]
[1748903191500,0.00034234,105700.0,105690.0,1.9133778]
[1748903191803,0.00034234,105700.0,105690.0,1.7980656]
[1748903191998,0.00014234,105700.0,105690.0,1.7980656]
[1748903192211,0.00014234,105700.0,105690.0,1.94353537]
[1748903192212,0.00034234,105700.0,105690.0,1.94353537]
[1748903192402,0.00014234,105700.0,105690.0,2.0136613]
[1748903192595,0.00034234,105700.0,105690.0,2.0136613]
[1748903193710,0.00034234,105700.0,105690.0,1.94353537]
[1748903193905,0.00165766,105720.0,105710.0,0.1891122]
[1748903194106,0.4100602,105750.0,105730.0,0.0472664]
[1748903194306,0.4100602,105750.0,105740.0,0.68389075]
[1748903194307,0.5991058,105750.0,105740.0,0.68389075]
[1748903194500,0.89407036,105750.0,105740.0,1.04389075]
[1748903194700,0.89407036,105750.0,105740.0,1.08711204]
[1748903195014,0.89427036,105750.0,105740.0,1.08711204]
[1748903195403,0.89427036,105750.0,105740.0,1.04390129]
[1748903196003,0.98883836,105750.0,105740.0,1.08706292]
[1748903196515,0.98883836,105750.0,105740.0,1.04384163]
[1748903196808,0.4801,105750.0,105740.0,1.23290003]
[1748903197200,0.4211,105750.0,105740.0,1.33470702]
[1748903197400,0.363,105750.0,105740.0,1.39232135]
[1748903197601,0.3628,105750.0,105740.0,1.39232135]
[1748903197813,0.363,105750.0,105740.0,1.36614306]
[1748903198016,0.3628,105750.0,105740.0,1.42354306]
[1748903198216,0.363,105750.0,105740.0,1.42354306]
[1748903199008,0.363,105750.0,105740.0,1.50070347]
[1748903199310,0.363,105750.0,105740.0,1.44330347]
[1748903199814,0.363,105750.0,105740.0,1.44357795]
[1748903201012,0.0022,105750.0,105740.0,2.05866401]
[1748903201211,0.00014234,105760.0,105750.0,0.1890406]
[1748903201418,0.00014234,105760.0,105750.0,0.76172549]
[1748903201611,0.00014234,105760.0,105750.0,1.12252549]
[1748903201809,0.00014234,105760.0,105750.0,1.30039005]
[1748903202314,0.00034234,105760.0,105750.0,1.30039005]
[1748903203121,0.00034234,105760.0,105750.0,2.19480549]
[1748903203622,0.00034234,105760.0,105750.0,2.42917888]
[1748903204110,0.00014234,105760.0,105750.0,2.42917888]
[1748903204311,0.00034234,105760.0,105750.0,2.42917888]
[1748903204717,0.00034234,105760.0,105750.0,2.31392127]
[1748903205021,0.00034234,105760.0,105750.0,2.37258984]
[1748903205415,0.00034234,105760.0,105750.0,2.45886715]
[1748903205616,0.00034234,105760.0,105750.0,2.40019858]
[1748903205813,0.00034234,105760.0,105750.0,1.67249342]
[1748903206014,0.00034234,105760.0,105750.0,2.36313402]
[1748903206015,0.36114234,105760.0,105750.0,2.36313402]
[1748903206511,0.55016504,105760.0,105750.0,2.2316033]
[1748903206712,0.55016504,105760.0,105750.0,1.7300033]
[1748903206912,0.66726504,105760.0,105750.0,2.18841155]
[1748903207109,0.66726504,105760.0,105750.0,2.13111021]
[1748903207316,0.66726504,105760.0,105750.0,2.32015081]
[1748903207519,0.00034234,105760.0,105750.0,2.30897477]
[1748903207709,0.00014234,105760.0,105750.0,2.91631391]
[1748903207917,0.00034234,105760.0,105750.0,2.87319468]
[1748903208113,0.00014234,105760.0,105750.0,2.87319468]
[1748903208310,0.00034234,105760.0,105750.0,2.95947199]
[1748903208713,0.00034234,105760.0,105750.0,2.87319468]
[1748903209819,0.00034234,105760.0,105750.0,2.93186325]
[1748903210521,0.00034234,105760.0,105750.0,2.9318066]
[1748903210921,0.00034234,105760.0,105750.0,2.93182205]
[1748903211810,0.00034234,105760.0,105750.0,3.01809936]
[1748903212021,0.18936494,105760.0,105750.0,0.7165542]
[1748903212225,0.12214234,105760.0,105750.0,1.34062882]
[1748903212423,0.6608069,105760.0,105750.0,1.34062882]
[1748903212719,0.6608069,105760.0,105750.0,1.38377449]
[1748903212925,0.6608069,105760.0,105750.0,1.34062882]
[1748903213122,0.48294234,105760.0,105750.0,1.34070882]
[1748903214226,0.48294234,105760.0,105750.0,0.70034882]
[1748903214425,0.48294234,105760.0,105750.0,1.34022882]
[1748903214629,0.48294234,105760.0,105750.0,1.87889338]
[1748903214630,0.05994234,105760.0,105750.0,1.87889338]
[1748903214830,0.05994234,105760.0,105750.0,1.89709494]
[1748903215126,0.05994234,105760.0,105750.0,1.94098759]
[1748903215431,0.00034234,105760.0,105750.0,1.99965616]
[1748903215926,0.00034234,105760.0,105750.0,2.0272649]
[1748903217125,0.00034234,105760.0,105750.0,2.0278249]
[1748903218331,0.00034234,105760.0,105750.0,1.98393225]
[1748903218526,0.00034234,105760.0,105750.0,2.02875923]
[1748903218831,0.00034234,105760.0,105750.0,2.03064935]
[1748903219428,0.0002,105760.0,105750.0,2.18814935]
[1748903219628,0.005,105800.0,105790.0,0.1889691]
[1748903219818,0.005,105800.0,105790.0,1.8226794]
[1748903220021,0.06231234,105800.0,105790.0,1.72271136]
[1748903220217,0.06231234,105800.0,105790.0,1.42661022]
[1748903220422,0.12221234,105800.0,105790.0,1.4714372]
[1748903220625,0.12221234,105800.0,105790.0,1.49711467]
[1748903220824,0.12221234,105800.0,105790.0,1.48535202]
[1748903221022,0.12221234,105800.0,105790.0,1.49975836]
[1748903221419,0.06231234,105800.0,105790.0,1.57682638]
[1748903221623,0.06231234,105800.0,105790.0,1.66322669]
[1748903222122,0.25126354,105800.0,105790.0,0.77441759]
[1748903222326,0.8694281,105800.0,105790.0,0.88874903]
[1748903222527,0.8694281,105800.0,105790.0,0.56557973]
[1748903222723,1.2139521,105800.0,105790.0,0.20828449]
[1748903222923,1.2239521,105800.0,105790.0,0.68396936]
[1748903223128,1.47441666,105800.0,105790.0,0.10640936]
[1748903223334,1.47441666,105800.0,105790.0,0.60656936]
[1748903223533,1.2965521,105800.0,105790.0,0.54656936]
[1748903224035,1.2965521,105800.0,105790.0,0.06]
[1748903224232,1.47441666,105800.0,105790.0,0.56012]
[1748903224628,1.4665521,105800.0,105790.0,0.56012]
[1748903224824,1.4665521,105800.0,105790.0,0.06]
[1748903225043,1.47080164,105800.0,105790.0,0.55968]
[1748903225234,1.47080164,105800.0,105790.0,0.06]
[1748903225433,1.12627764,105800.0,105790.0,0.7486502]
[1748903225729,0.75946188,105800.0,105790.0,1.01249034]
[1748903225931,0.94841418,105800.0,105790.0,1.14598708]
[1748903226231,0.94861418,105800.0,105790.0,1.14598708]
[1748903226730,1.22100274,105800.0,105790.0,1.07128678]
[1748903227537,0.57966188,105800.0,105790.0,1.14128678]
[1748903227722,0.42736188,105800.0,105790.0,1.30429055]
[1748903227926,0.42756188,105800.0,105790.0,1.30429055]
[1748903228241,0.42736188,105800.0,105790.0,1.30429055]
[1748903228535,0.42756188,105800.0,105790.0,1.30429055]
[1748903228834,0.06676188,105800.0,105790.0,1.34652119]
[1748903229058,0.06676188,105800.0,105790.0,1.37489213]
[1748903229929,0.06676188,105800.0,105790.0,1.31729193]
[1748903230534,0.06676188,105800.0,105790.0,1.30435372]
[1748903230831,0.06676188,105800.0,105790.0,1.24669035]
[1748903231027,0.06676188,105800.0,105790.0,1.31729193]
[1748903231534,0.06676188,105800.0,105790.0,1.24665959]
[1748903232440,0.06676188,105800.0,105790.0,1.30432219]
[1748903233827,0.06676188,105800.0,105790.0,1.37492377]
[1748903234033,0.06676188,105800.0,105790.0,1.33728377]
[1748903234234,0.06676188,105800.0,105790.0,1.32499875]
[1748903234434,0.06676188,105800.0,105790.0,1.35337384]
[1748903235443,0.25571398,105800.0,105790.0,1.16440394]
[1748903235637,0.33491398,105800.0,105790.0,1.16440394]
[1748903236440,0.40841398,105800.0,105790.0,1.09385351]
[1748903237041,0.40841398,105800.0,105790.0,1.16440394]
[1748903237346,0.40841398,105800.0,105790.0,1.35337384]
[1748903237540,0.40841398,105800.0,105790.0,1.28282341]
[1748903237745,0.76921398,105800.0,105790.0,1.09385351]
[1748903237936,0.94707854,105800.0,105790.0,0.60842272]
[1748903238140,0.94707854,105800.0,105790.0,0.90226765]
[1748903238141,1.11990254,105800.0,105790.0,0.90226765]
[1748903238446,1.11990254,105800.0,105790.0,0.84464]
[1748903238644,1.11990254,105800.0,105790.0,0.88869656]
[1748903238946,1.11990254,105800.0,105790.0,0.88837656]
[1748903239245,1.36990254,105800.0,105790.0,0.94703732]
[1748903239832,1.36990254,105800.0,105790.0,0.88825656]
[1748903240436,1.36990254,105800.0,105790.0,0.94703732]
[1748903240839,1.36990254,105800.0,105790.0,0.88825656]
[1748903241041,1.36990254,105800.0,105790.0,0.39405656]
[1748903241234,1.11990254,105800.0,105790.0,0.88813656]
[1748903241438,0.94203798,105800.0,105790.0,0.88813656]
[1748903241644,1.11990254,105800.0,105790.0,0.88785656]
[1748903242145,1.11990254,105800.0,105790.0,0.88765656]
[1748903242540,1.11990254,105800.0,105790.0,0.8436]
[1748903242850,1.11990254,105800.0,105790.0,0.88767841]
[1748903243239,1.11990254,105800.0,105790.0,0.45285917]
[1748903243440,1.11990254,105800.0,105790.0,0.94569917]
[1748903245439,1.11990254,105800.0,105790.0,0.45285917]
[1748903245641,1.11990254,105800.0,105790.0,0.59485917]
[1748903245840,1.11990254,105800.0,105790.0,0.74485917]
[1748903246347,1.11990254,105800.0,105790.0,0.74487991]
[1748903246738,1.11990254,105800.0,105790.0,0.68609915]
[1748903247043,1.11990254,105800.0,105790.0,0.19409915]
[1748903247237,0.1889699,105790.0,105780.0,0.14607795]
[1748903247445,0.89223446,105790.0,105780.0,0.63723795]
[1748903247649,1.0440788,105790.0,105780.0,0.63723795]
[1748903247845,1.0440788,105790.0,105780.0,0.65723795]
[1748903248554,0.86621424,105790.0,105780.0,0.58670234]
[1748903248844,1.0440788,105790.0,105780.0,0.58670234]
[1748903249544,0.9395468,105790.0,105780.0,0.58670234]
[1748903249744,0.9395468,105790.0,105780.0,0.66370234]
[1748903250446,0.9395468,105790.0,105780.0,0.83370234]
[1748903250751,0.9395468,105790.0,105780.0,0.90423795]
[1748903251045,0.9395468,105790.0,105780.0,0.89256488]
[1748903251850,0.9395468,105790.0,105780.0,0.83370234]
[1748903253060,0.9395468,105790.0,105780.0,0.89032801]
[1748903255248,0.9395468,105790.0,105780.0,0.89032984]
[1748903255449,0.9395468,105790.0,105780.0,0.83146234]
[1748903255655,0.94379634,105790.0,105780.0,0.83146234]
[1748903256847,0.94379634,105790.0,105780.0,0.90199795]
[1748903257042,0.94379634,105790.0,105780.0,0.83146234]
[1748903257249,0.94379634,105790.0,105780.0,0.90199795]
[1748903257840,0.94379634,105790.0,105780.0,0.83146234]
[1748903258457,0.94379634,105790.0,105780.0,0.90199795]
[1748903258752,0.94379634,105790.0,105780.0,0.83146234]
[1748903259353,0.06156188,105790.0,105780.0,1.38829783]
[1748903259543,0.25053178,105790.0,105780.0,1.48815398]
[1748903259752,0.25053178,105790.0,105780.0,1.51692664]
[1748903260045,0.1939678,105800.0,105790.0,0.1889699]
[1748903260253,0.1939678,105800.0,105790.0,1.08853796]
[1748903260449,0.1939678,105800.0,105790.0,1.1044542]
[1748903260652,0.1939678,105800.0,105790.0,1.23914209]
[1748903260955,0.1941678,105800.0,105790.0,1.23914209]
[1748903261347,0.1941678,105800.0,105790.0,1.2391175]
[1748903263148,0.1941678,105800.0,105790.0,1.40311184]
[1748903263544,0.1941678,105800.0,105790.0,1.37471157]
[1748903264652,0.1941678,105800.0,105790.0,1.31703785]
[1748903264851,0.1941678,105800.0,105790.0,1.37469881]
[1748903265046,0.1941678,105800.0,105790.0,1.33103229]
[1748903265248,0.1941678,105800.0,105790.0,1.31702555]
[1748903265560,0.1941678,105800.0,105790.0,1.37468653]
[1748903265751,0.0052,105800.0,105790.0,1.37468653]
[1748903265953,0.0052,105800.0,105790.0,1.31702555]
[1748903266266,0.194152,105800.0,105790.0,1.55254733]
[1748903266583,0.002,105810.0,105800.0,0.188952]
[1748903266753,0.002,105810.0,105800.0,1.78272228]
[1748903267059,0.002,105810.0,105800.0,2.18881337]
[1748903267255,0.1909341,105810.0,105800.0,1.82199681]
[1748903267447,0.1911341,105810.0,105800.0,1.87969701]
[1748903267646,0.0022,105810.0,105800.0,1.87969701]
[1748903267851,0.1911341,105810.0,105800.0,1.87969701]
[1748903268762,0.1911341,105810.0,105800.0,1.93706158]
[1748903268960,0.5519341,105810.0,105800.0,1.38702958]
[1748903269166,0.5519341,105810.0,105800.0,0.81676331]
[1748903269352,0.5519341,105810.0,105800.0,0.84795026]
[1748903269663,0.5519341,105810.0,105800.0,1.27427383]
[1748903270251,0.6483341,105810.0,105800.0,1.27427383]
[1748903270558,0.6483341,105810.0,105800.0,1.23177242]
[1748903270762,0.6483341,105810.0,105800.0,1.23046102]
[1748903270962,0.6483341,105810.0,105800.0,0.79037004]
[1748903271159,0.92269866,105810.0,105800.0,0.28663221]
[1748903271354,0.8390341,105810.0,105800.0,1.13031221]
[1748903271549,0.2875341,105810.0,105800.0,1.13031221]
[1748903271756,0.2875341,105810.0,105800.0,1.10244884]
[1748903271955,0.5519341,105810.0,105800.0,1.10244884]
[1748903272263,0.5517341,105810.0,105800.0,1.17296467]
[1748903272450,0.5519341,105810.0,105800.0,1.12949565]
[1748903272649,0.1911341,105810.0,105800.0,1.12949565]
[1748903272854,0.6512341,105810.0,105800.0,1.1729631]
[1748903273451,0.2904341,105810.0,105800.0,1.1729631]
[1748903273651,0.6512341,105810.0,105800.0,1.1729631]
[1748903274155,0.2904341,105810.0,105800.0,1.3619142]
[1748903274366,0.6512341,105810.0,105800.0,1.1729631]
[1748903274959,0.2904341,105810.0,105800.0,1.24741061]
[1748903275154,0.2904341,105810.0,105800.0,0.76373061]
[1748903275155,0.7508341,105810.0,105800.0,0.76373061]
[1748903275565,0.7508341,105810.0,105800.0,1.37537061]
[1748903276269,0.92869866,105810.0,105800.0,1.24613061]
[1748903276662,0.92869866,105810.0,105800.0,0.76373061]
[1748903276863,0.92869866,105810.0,105800.0,1.24581061]
[1748903277062,0.8461341,105810.0,105800.0,1.08249478]
[1748903277264,0.8461341,105810.0,105800.0,1.15301061]
[1748903277658,0.8461341,105810.0,105800.0,0.64003079]
[1748903277968,0.188952,105800.0,105790.0,0.05759643]
[1748903278265,1.0726784,105800.0,105790.0,0.07054911]
[1748903278457,0.1889699,105790.0,105780.0,0.00014234]
[1748903278660,0.1889699,105790.0,105780.0,0.10014234]
[1748903278661,0.91883446,105790.0,105780.0,0.10014234]